Workbook

Sheet Титул
AK2: Утверждаю:
AK3: Директор ______________
AK4: ГБОУ СПО "МППК"
AK5: М.Н. Верхотурцев
AK6: « | AL6: 7 | AN6: » | AO6: июня | AR6: 201 | AT6: 3 | AU6: г
O12: УЧЕБНЫЙ ПЛАН
B13: Государственного бюджетного образовательного учреждения среднего профессионального образования
C14: «Мишкинский профессионально-педагогический колледж»
J15: по специальности среднего профессионального образования
F17: 262019 | L17: Конструирование, моделирование и технология швейных изделий
J20: по программе базовой подготовки
AA25: Квалификация: | AI25: Технолог-конструктор
AA28: Форма обучения- | AJ28: очная
AA29: Нормативный срок обучения- | AN29: 3 | AP29: г | AQ29: 10 | AS29: мес
AA30: На базе | AE30: основного общего образования
AA31: Профиль | AF31: технический

Sheet Сводные
A1: Сводные данные по бюджету времени (в неделях)
A3: Курсы | B3: Обучение по дисциплинам и междисциплинарным курсам | C3: Учебная практика | D3: Производственная практика | F3: Промежуточная аттестация | G3: Государственная итоговая аттестация | H3: Каникулы | I3: Всего
D4: по профилю специальности | E4: преддипломная
E5: (для СПО)
A6: 1 | B6: 2 | C6: 3 | D6: 4 | E6: 5 | F6: 6 | G6: 7 | H6: 8 | I6: 9
A7: I курс | B7: =I7-H7-G7-F7-E7-D7-C7 -> 39 | F7: 2 | H7: 11 | I7: 52
A8: II курс | B8: =I8-H8-G8-F8-E8-D8-C8 -> 36 | C8: 4 | F8: 1 | H8: 11 | I8: 52
A9: III курс | B9: 28 | C9: 4 | D9: 8 | F9: 2 | H9: 10 | I9: 52
A10: VI курс | B10: 20 | C10: 4 | D10: 5 | E10: 4 | F10: 2 | G10: 6 | H10: 2 | I10: 43
A11: Всего | B11: =SUM(B7:B10) -> 123 | C11: 12 | D11: 13 | E11: 4 | F11: 7 | G11: 6 | H11: 34 | I11: 199
K12: Удалить строку

Sheet План уч проц
S2: Технич
A3: Индекс | B3: Наименование циклов, дисциплин, профессиональных модулей, МДК, практик | C3: Форма промежуточной аттестации | F3: Учебная нагрузка обучающихся (час.) | L3: Учебная и производственная практика | M3: Распределение обязательной нагрузки по курсам и семестрам[2] (час. в семестр)
F7: максимальная | G7: самостоятельная работа | H7: Обязательная аудиторная | M7: I курс | O7: II курс | Q7: III курс | S7: IV курс
C8: З | D8: ДЗ | E8: Э | H8: всего занятий | I8: в т. ч. | M8: 1 семестр | N8: 2 семестр | O8: 3 семестр | P8: 4 семестр | Q8: 5 семестр | R8: 6 семестр | S8: 7 семестр | T8: 8 семестр
I9: лекций, уроков, семинаров | J9: лаб. и практ. занятий | K9: Курсовая | M9: сем. | N9: сем. | O9: сем. | P9: сем. | Q9: сем. | R9: сем. | S9: сем. | T9: сем.
M10: 17 | N10: 22 | O10: 17 | P10: 23 | Q10: 16 | R10: 24 | S10: 16 | T10: 13
M11: 17 | N11: 22 | O11: 15 | P11: 21 | Q11: 11 | R11: 17 | S11: 10 | T11: 10
M12: нед | N12: нед | O12: нед | P12: нед | Q12: нед | R12: нед | S12: нед | T12: нед
A13: 1 | B13: 2 | C13: 3 | D13: 4 | E13: 5 | F13: 6 | G13: 7 | H13: 8 | I13: 9 | J13: 10 | K13: 11 | L13: 12 | M13: 13 | N13: 14 | O13: 15 | P13: 16 | Q13: 17 | R13: 18 | S13: 19 | T13: 20
A14: О.00 | B14: Общеобразовательный цикл | H14: =SUM(H15:H26) -> 1404 | M14: =SUM(M15:M26) -> 612 | N14: =SUM(N15:N26) -> 792 | O14: =SUM(O15:O70)/O10 -> 128.7058824 | P14: 140.0869565 | Q14: 114.125 | R14: 129.5833333 | S14: 119.25 | T14: 131.3846154
A15: ОДБ.01 | B15: Русский язык | E15: 2 | H15: =SUM(M15:R15) -> 78 | M15: 34 | N15: 44
A16: ОДБ.02 | B16: Литература | D16: 2 | H16: =SUM(M16:R16) -> 117 | M16: 51 | N16: 66
A17: ОДБ.03 | B17: Иностранный язык | D17: 2 | H17: 117 | M17: 51 | N17: 66
A18: ОДБ.04 | B18: История | D18: 2 | H18: 78 | M18: 34 | N18: 44
A19: ОДБ.05 | B19: Обществознание | D19: 2 | H19: 78 | M19: 34 | N19: 44
A20: ОДБ.06 | B20: Химия | D20: 2 | H20: 78 | M20: 34 | N20: 44
A21: ОДБ.07 | B21: Биология | D21: 2 | H21: 78 | M21: 34 | N21: 44
A22: ОДБ.08 | B22: Основы безопасности жизнедеятельности | D22: 2 | H22: 78 | M22: 34 | N22: 44
A23: ОДБ.09 | B23: Физическая культура | D23: 2 | H23: 117 | M23: 51 | N23: 66
A24: ОДП.01 | B24: Математика | E24: 2 | H24: 234 | M24: 102 | N24: 132
A25: ОДП.02 | B25: Физика | E25: 2 | H25: 195 | M25: 85 | N25: 110
A26: ОДП.03 | B26: Информатика и ИКТ | D26: 2 | H26: 156 | M26: 68 | N26: 88
B27: Всего по циклам ОПОП | F27: =F28+F33+F37 -> 4536 | G27: =G28+G33+G37 -> 1512 | H27: =H28+H33+H37 -> 3024 | I27: =I28+I33+I37 -> 1068 | J27: =J28+J33+J37 -> 1956 | K27: 30 | L27: =L47 -> 900 | O27: =O28+O33+O37 -> 540 | P27: =P28+P33+P37 -> 756 | Q27: 396 | R27: 612 | S27: 360 | T27: 360
A28: ОГСЭ.00 | B28: Общий гуманитарный и социально-экономический цикл | F28: =SUM(F29:F32) -> 660 | G28: =SUM(G29:G32) -> 220 | H28: 440 | I28: =SUM(I29:I32) -> 98 | J28: =SUM(J29:J32) -> 342 | O28: =SUM(O29:O32) -> 156 | P28: =SUM(P29:P32) -> 84 | Q28: 44 | R28: 68 | S28: 44 | T28: 44
A29: ОГСЭ.01 | B29: Основы философии | D29: 3 | F29: 54 | G29: =F29-H29 -> 6 | H29: =SUM(O29:T29) -> 48 | I29: 48 | O29: 48
A30: ОГСЭ.02 | B30: История | D30: 3 | F30: 54 | G30: 6 | H30: =SUM(O30:T30) -> 48 | I30: 48 | O30: 48
A31: ОГСЭ.03 | B31: Иностранный язык | D31: 8 | F31: =H31+G31 -> 208 | G31: 36 | H31: =SUM(O31:T31) -> 172 | J31: 172 | O31: 30 | P31: 42 | Q31: 22 | R31: 34 | S31: 22 | T31: 22
A32: ОГСЭ.04 | B32: Физическая культура | D32: 3,4,5,6,7,8 | F32: 344 | G32: 172 | H32: =SUM(O32:T32) -> 172 | I32: 2 | J32: 170 | O32: 30 | P32: 42 | Q32: 22 | R32: 34 | S32: 22 | T32: 22
A33: ЕН.00 | B33: Математический и общий естественнонаучный цикл | F33: =SUM(F34:F36) -> 333 | G33: =SUM(G34:G36) -> 111 | H33: =SUM(H34:H36) -> 222 | I33: =SUM(I34:I36) -> 94 | J33: =SUM(J34:J36) -> 128 | O33: =SUM(O34:O36) -> 60 | P33: 86 | Q33: 76 | R33: 0 | S33: 0 | T33: 0
A34: ЕН.01 | B34: Математика | D34: 3 | F34: =ROUNDDOWN(H34*1.5,0) -> 90 | G34: =F34-H34 -> 30 | H34: =SUM(O34:T34) -> 60 | I34: 24 | J34: 36 | O34: 60
A35: ЕН.02 | B35: Экологические основы природопользования | D35: 5 | F35: =ROUNDDOWN(H35*1.5,0) -> 129 | G35: =F35-H35 -> 43 | H35: =SUM(O35:T35) -> 86 | I35: 66 | J35: 20 | P35: 44 | Q35: 42
A36: ЕН.03 | B36: Информационные технологии в профессиональной деятельности | D36: 5 | F36: 114 | G36: =F36-H36 -> 38 | H36: =SUM(O36:T36) -> 76 | I36: 4 | J36: 72 | P36: 42 | Q36: 34
A37: П.00 | B37: Профессиональный цикл | F37: =F38+F47 -> 3543 | G37: =G38+G47 -> 1181 | H37: =H38+H47 -> 2362 | I37: =I38+I47 -> 876 | J37: =J38+J47 -> 1486 | K37: 30 | O37: =O38+O47 -> 324 | P37: 586 | Q37: 276 | R37: 544 | S37: 316 | T37: 316
A38: ОП.00 | B38: Общепрофессиональные дисциплины | F38: =SUM(F39:F46) -> 1101 | G38: =SUM(G39:G46) -> 367 | H38: =SUM(H39:H46) -> 734 | I38: =SUM(I39:I46) -> 348 | J38: =SUM(J39:J46) -> 386 | O38: =SUM(O39:O46) -> 152 | P38: 290 | Q38: 94 | R38: 66 | S38: 20 | T38: 112
A39: ОП.01 | B39: Инженерная графика | E39: 4 | F39: =ROUNDDOWN(H39*1.5,0) -> 180 | G39: =F39-H39 -> 60 | H39: =SUM(O39:T39) -> 120 | I39: 40 | J39: 80 | O39: 30 | P39: 90
A40: ОП.02 | B40: Метрология, стандартизация и подтверждение качества | D40: 4 | F40: 117 | G40: 39 | H40: 78 | I40: 44 | J40: 34 | O40: 30 | P40: 48
A41: ОП.03 | B41: Материаловедение | E41: 5 | F41: 309 | G41: 103 | H41: 206 | I41: 104 | J41: 102 | O41: 60 | P41: 84 | Q41: 62
A42: ОП.04 | B42: Спецрисунок и художественная графика | E42: 6 | F42: 96 | G42: =F42-H42 -> 32 | H42: 64 | I42: 20 | J42: 44 | Q42: 32 | R42: 32
A43: ОП.05 | B43: История стилей в костюме | D43: 8 | F43: 145 | G43: 43 | H43: 102 | I43: 54 | J43: 48 | R43: 34 | S43: 20 | T43: 48
A44: ОП.06 | B44: Правовое обеспечение профессиональной деятельности | C44: 8 | F44: =ROUNDDOWN(H44*1.5,0) -> 96 | G44: 32 | H44: =SUM(O44:V44) -> 64 | I44: 44 | J44: 20 | T44: 64
A45: ОП.07 | B45: Безопасность жизнедеятельности | D45: 4 | F45: 110 | G45: 42 | H45: =SUM(O45:V45) -> 68 | I45: 20 | J45: 48 | P45: 68
A46: ОП.08 | B46: Охрана труда | C46: 3 | F46: 48 | G46: 16 | H46: =SUM(O46:T46) -> 32 | I46: 22 | J46: 10 | O46: 32
A47: ПМ.00 | B47: Профессиональные модули | F47: =F48+F53+F58+F63+F67 -> 2442 | G47: 814 | H47: =H48+H53+H58+H63+H67 -> 1628 | I47: =I48+I53+I58+I63+I67 -> 528 | J47: 1100 | K47: 30 | L47: 900 | M47: =M48+M53+M58 -> 0 | N47: 0 | O47: =O48+O53+O58+O63+O67 -> 172 | P47: =P48+P53+P58+P63+P67 -> 296 | Q47: 182 | R47: 478 | S47: 296 | T47: 204
A48: ПМ.01 | B48: Моделирование швейных изделий | E48: 5(К) | F48: =SUM(F49:F50) -> 330 | G48: =SUM(G49:G50) -> 110 | H48: 220 | I48: 94 | J48: 126 | K48: 0 | L48: =SUM(L51:L52) -> 144 | O48: =SUM(O49:O50) -> 118 | P48: =SUM(P49:P50) -> 102 | Q48: 0 | R48: 0 | S48: 0 | T48: 0
A49: МДК.01.01 | B49: Основы художественного оформления швейного изделия | E49: 4 | F49: =ROUNDDOWN(H49*1.5,0) -> 222 | G49: =F49-H49 -> 74 | H49: =SUM(O49:T49) -> 148 | I49: 72 | J49: 76 | O49: 46 | P49: 102
A50: МДК.01.02 | B50: Художественная обработка материалов | C50: 3 | F50: 108 | G50: 36 | H50: =SUM(O50:T50) -> 72 | I50: 22 | J50: 50 | O50: 72
A51: УП.01 | B51: Учебная пратика | C51: 4 | L51: =SUM(N51:U51) -> 72 | O51: 36 | P51: 36
A52: ПП.01 | B52: Производственная практика | C52: 5 | L52: =SUM(N52:U52) -> 72 | Q52: 72
A53: ПМ.02 | B53: Конструирование швейных изделий | E53: 7(К) | F53: =SUM(F54:F55) -> 291 | G53: =SUM(G54:G55) -> 97 | H53: 194 | I53: =SUM(I54:I55) -> 76 | J53: 118 | K53: 30 | L53: =SUM(L56:L57) -> 108 | O53: 0 | P53: 0 | Q53: 0 | R53: 108 | S53: 86 | T53: 0
A54: МДК.02.01 | B54: Теоретические основы конструирования швейных изделий | D54: 7 | F54: =ROUNDDOWN(H54*1.5,0) -> 120 | G54: =F54-H54 -> 40 | H54: =SUM(O54:T54) -> 80 | I54: 28 | J54: 52 | R54: 34 | S54: 46
A55: МДК.02.02 | B55: Методы конструктивного моделирования швейных изделий | D55: 7 | F55: 171 | G55: 57 | H55: =SUM(O55:T55) -> 114 | I55: 48 | J55: 66 | R55: 74 | S55: 40
A56: УП.02 | B56: Учебная пратика | C56: 7 | L56: =SUM(M56:U56) -> 72 | S56: 72
A57: ПП.02 | B57: Производственная практика | C57: 7 | L57: =SUM(M57:U57) -> 36 | S57: 36
A58: ПМ.03 | B58: Подготовка и организация технологических процессов на швейном производстве | E58: 5(К) | F58: =SUM(F59:F60) -> 465 | G58: 155 | H58: =SUM(H59:H60) -> 310 | I58: =SUM(I59:I60) -> 158 | J58: 152 | L58: =L61+L62 -> 108 | O58: =O59+O60 -> 54 | P58: =P59+P60 -> 194 | Q58: 62 | R58: 0 | S58: 0 | T58: 0
A59: МДК.03.01 | B59: Основы обработки различных видов одежды | E59: 5 | F59: =ROUNDDOWN(H59*1.5,0) -> 384 | G59: =F59-H59 -> 128 | H59: =SUM(O59:T59) -> 256 | I59: 132 | J59: 124 | P59: 194 | Q59: 62
A60: МДК.03.02 | B60: Оборудование швейного производства | D60: 3 | F60: =ROUNDDOWN(H60*1.5,0) -> 81 | G60: 27 | H60: =SUM(O60:T60) -> 54 | I60: 26 | J60: 28 | O60: 54
A61: УП.03 | B61: Учебная практика | C61: 4 | L61: =SUM(M61:U61) -> 72 | O61: 36 | P61: 36
A62: ПП.03 | B62: Производственная практика | C62: 5 | L62: =SUM(M62:U62) -> 36 | Q62: 36
A63: ПМ.04 | B63: Организация работы специализированного подразделения швейного производства и управление ею | E63: 8(К) | F63: =SUM(F64) -> 306 | G63: 102 | H63: =SUM(H64) -> 204 | I63: =SUM(I64) -> 100 | J63: 104 | K63: =SUM(K64) -> 0 | L63: =L65+L66 -> 108 | M63: =SUM(M64) -> 0 | N63: =SUM(N64) -> 0 | O63: =SUM(O64) -> 0 | P63: =SUM(P64) -> 0 | Q63: =SUM(Q64) -> 0 | R63: =SUM(R64) -> 0 | S63: =SUM(S64) -> 0 | T63: =SUM(T64) -> 204
A64: МДК. 04. 01 | B64: Основы управления работами специализированного подразделения швейного производства | E64: 8 | F64: =ROUNDDOWN(H64*1.5,0) -> 306 | G64: =F64-H64 -> 102 | H64: =SUM(O64:T64) -> 204 | I64: 100 | J64: 104 | T64: 204
A65: УП.04 | B65: Учебная практика | L65: =SUM(M65:T65) -> 36 | T65: 36
A66: ПП.04 | B66: Производственная практика | C66: 8 | L66: =SUM(M66:T66) -> 72 | T66: 72
A67: ПМ. 05 | B67: Выполнение работ по одной или нескольким профессиям рабочих, должностям служащих | E67: 7(К) | F67: =F68 -> 1050 | G67: =G68 -> 350 | H67: 700 | I67: 100 | J67: 600 | K67: 0 | L67: =L69+L70 -> 432 | M67: 0 | N67: 0 | O67: 0 | P67: 0 | Q67: 120 | R67: 370 | S67: 210 | T67: 0
A68: МДК.05.01 | B68: Портной | D68: 5,6,7 | F68: =ROUNDDOWN(H68*1.5,0) -> 1050 | G68: =F68-H68 -> 350 | H68: =SUM(M68:T68) -> 700 | I68: 100 | J68: 600 | Q68: 120 | R68: 370 | S68: 210
A69: УП.05 | B69: Учебная практика | C69: 7 | L69: =SUM(M69:T69) -> 180 | Q69: 72 | R69: 72 | S69: 36
A70: ПП.05 | B70: Производственная практика | C70: 6.7 | L70: =SUM(M70:T70) -> 252 | R70: 180 | S70: 72
A71: Всего | F71: =SUM(H71+G71) -> 5940 | G71: =SUM(G37+G33+G28+G14) -> 1512 | H71: =SUM(H37+H33+H28+H14) -> 4428 | I71: =SUM(I37+I33+I28+I14) -> 1068 | J71: =SUM(J37+J33+J28+J14) -> 1956 | K71: 60 | L71: =L47 -> 900 | M71: =SUM(M15:M70) -> 612 | N71: =SUM(N15:N70) -> 792 | O71: =O75+O77+O78 -> 612 | P71: =P75+P77+P78 -> 828 | Q71: =Q75+Q77+Q78 -> 576 | R71: 864 | S71: 576 | T71: 468
A72: Кол-во часов в неделю | M72: =SUM(M15:M26)/M11 -> 36 | N72: =SUM(N15:N26)/N11 -> 36 | O72: =O71/O10 -> 36 | P72: =P71/P10 -> 36 | Q72: 36 | R72: 36 | S72: 36 | T72: 36
A73: ПДП | B73: Преддипломная практика | T73: 144
A74: ГИА | B74: Государственная итоговая аттестация | T74: 216
A75: Консультации на учебную группу по 100 часов в год (всего 400 час.) | H75: Всего | I75: дисциплин и МДК | M75: =M71-M77-M78 -> 612 | N75: =N71-N77-N78 -> 792 | O75: =O27 -> 540 | P75: =P27 -> 756 | Q75: 396 | R75: 612 | S75: 360 | T75: 360
A77: Государственная (итоговая) аттестация 6 недель (216 час) | I77: учебной практики | O77: =O61+O56+O51+O65+O69 -> 72 | P77: =P61+P56+P51+P65+P69 -> 72 | Q77: 72 | R77: 72 | S77: 108 | T77: 36
A78: 1. Программа углубленной подготовки | I78: производст. практика/преддипломная практика | O78: =O70+O57+O52+O66+O62 -> 0 | P78: =P70+P57+P52+P66+P62 -> 0 | Q78: 108 | R78: 180 | S78: 108 | T78: 72
A79: 1.1. Дипломный проект (работа) | I79: экзаменов | M79: - | N79: 3 | O79: - | P79: 2 | Q79: 4 | R79: 1 | S79: 2 | T79: 2
A80: Выполнение дипломного проекта (работы) с 18.05 по 14.06 (всего 4 нед.) | I80: диф.зачетов | M80: - | N80: 8 | O80: 4 | P80: 2 | Q80: 3 | R80: 1 | S80: 3 | T80: 2
A81: Защита дипломного проекта (работы) с 15.06 по 28.04 (всего 2 нед.) | I81: зачетов | M81: - | O81: 2 | P81: 2 | Q81: 2 | R81: 1 | S81: 3 | T81: 2

Sheet Лист3 (hidden)
C1: 1 | D1: 5
A2: очная | C2: 2 | D2: 10 | E2: основного общего образования
A3: заочная | C3: 3 | E3: начального профессионального образования | J3: по программе базовой подготовки
A4: очно-заочная | C4: 4 | E4: среднего (полного) общего образования | J4: по программе углубленной подготовки
C5: 5
C6: 6
C7: 0 | J7: по специальности среднего профессионального образования
J8: по профессии начального профессионального образования

Sheet Календарный график
J2: Календарный график учебного процесса
B4: Курс | C4: Сентябрь | H4: Октябрь | L4: Ноябрь | P4: Декабрь | U4: Январь | Y4: Февраль | AC4: Март | AH4: Апрель | AL4: Май | AP4: Июнь | AU4: Июль | AY4: Август
C5: 1 | D5: 8 | E5: 15 | F5: 22 | G5: 29 | H5: 6 | I5: 13 | J5: 20 | K5: 27 | L5: 3 | M5: 10 | N5: 17 | O5: 24 | P5: 1 | Q5: 8 | R5: 15 | S5: 22 | T5: 29 | U5: 2 | V5: 9 | W5: 16 | X5: 23 | Y5: 2 | Z5: 9 | AA5: 16 | AB5: 23 | AC5: 2 | AD5: 9 | AE5: 16 | AF5: 23 | AG5: 30 | AH5: 6 | AI5: 13 | AJ5: 20 | AK5: 27 | AL5: 4 | AM5: 11 | AN5: 18 | AO5: 25 | AP5: 1 | AQ5: 8 | AR5: 15 | AS5: 22 | AT5: 29 | AU5: 6 | AV5: 13 | AW5: 20 | AX5: 27 | AY5: 3 | AZ5: 10 | BA5: 17 | BB5: 24
C6: 7 | D6: 14 | E6: 21 | F6: 28 | G6: 5 | H6: 12 | I6: 19 | J6: 26 | K6: 2 | L6: 9 | M6: 16 | N6: 23 | O6: 30 | P6: 7 | Q6: 14 | R6: 21 | S6: 28 | T6: 4 | U6: 8 | V6: 15 | W6: 22 | X6: 1 | Y6: 8 | Z6: 15 | AA6: 22 | AB6: 1 | AC6: 8 | AD6: 15 | AE6: 22 | AF6: 29 | AG6: 5 | AH6: 12 | AI6: 19 | AJ6: 26 | AK6: 3 | AL6: 19 | AM6: 17 | AN6: 24 | AO6: 31 | AP6: 7 | AQ6: 14 | AR6: 21 | AS6: 28 | AT6: 5 | AU6: 12 | AV6: 19 | AW6: 26 | AX6: 2 | AY6: 9 | AZ6: 16 | BA6: 23 | BB6: 31
B7: 1 | T7: - | U7: - | AR7: А | AS7: А | AT7: - | AU7: - | AV7: - | AW7: - | AX7: - | AY7: - | AZ7: - | BA7: - | BB7: -
B8: 2 | R8: ОУ | S8: ОУ | T8: - | U8: - | AQ8: А | AR8: ОУ | AS8: ОУ | AT8: - | AU8: - | AV8: - | AW8: - | AX8: - | AY8: - | AZ8: - | BA8: - | BB8: -
B9: 3 | K9: ОУ | L9: ОУ | P9: ПП | Q9: ПП | R9: ПП | S9: А | T9: - | U9: - | AM9: ОУ | AN9: ОУ | AO9: А | AP9: ПП | AQ9: ПП | AR9: ПП | AS9: ПП | AT9: ПП | AU9: - | AV9: - | AW9: - | AX9: - | AY9: - | AZ9: - | BA9: - | BB9: -
B10: 4 | I10: ОУ | J10: ОУ | K10: ОУ | P10: ПП | Q10: ПП | R10: ПП | S10: А | T10: - | U10: - | AD10: ОУ | AE10: ПП | AF10: ПП | AI10: А | AJ10: ПД | AK10: ПД | AL10: ПД | AM10: ПД | AN10: ИА | AO10: ИА | AP10: ИА | AQ10: ИА | AR10: ИА | AS10: ИА
C11: 1 | D11: 2 | E11: 3 | F11: 4 | G11: 5 | H11: 6 | I11: 7 | J11: 8 | K11: 9 | L11: 10 | M11: 11 | N11: 12 | O11: 13 | P11: 14 | Q11: 15 | R11: 16 | S11: 17 | T11: 18 | U11: 19 | V11: 20 | W11: 21 | X11: 22 | Y11: 23 | Z11: 24 | AA11: 25 | AB11: 26 | AC11: 27 | AD11: 28 | AE11: 29 | AF11: 30 | AG11: 31 | AH11: 32 | AI11: 33 | AJ11: 34 | AK11: 35 | AL11: 36 | AM11: 37 | AN11: 38 | AO11: 39 | AP11: 40 | AQ11: 41 | AR11: 42 | AS11: 43 | AT11: 44 | AU11: 45 | AV11: 46 | AW11: 47 | AX11: 48 | AY11: 49 | AZ11: 50 | BA11: 51 | BB11: 52
D15: Условные обозначения
G17: - | H17: Теоретическое обучение | R17: ПП | T17: - | U17: Производственная практика | AD17: - | AF17: - | AG17: Каникулы | AN17: ПД | AP17: - | AQ17: Преддипломная практика
E19: ОУ | G19: - | H19: Учебная практика | R19: А | T19: - | U19: Промежуточная атестация | AD19: ИА | AF19: - | AG19: Итоговая аттестация
AK25: ,
AK39: ,

Sheet Перечень кабинетов
B1: Перечень кабинетов, лабораторий, мастерских и др. для подготовки
B2: по специальности СПО
A3: № | B3: Наименование
B4: Кабинеты:
A5: 1 | B5: основы философии;
A6: 2 | B6: иностранных языков;
A7: 3 | B7: математики;
A8: 4 | B8: информатики;
A9: 5 | B9: материаловедения;
A10: 6 | B10: инженерной графики;
A11: 7 | B11: безопасность жизнедеятельности;
A12: 8 | B12: метрологии, стандартизации и сертификации;
A13: 9 | B13: история стилей в костюме;
A14: 10 | B14: моделирование и художественно оформление одежды;
A15: 11 | B15: спецрисунок и художественная графика;
A16: 12 | B16: технология швейныхизделий;
A17: 13 | B17: конструирования одежды;
B18: Лаборатории:
A19: 1 | B19: конструирования изделий и раскроя ткани;
A20: 2 | B20: макетирования швейных изделий;
A21: 3 | B21: компьютерной графики;
A22: 4 | B22: художественного конструкторского проектирования;
A23: 6 | B23: технологического оборудования деревообрабатывающего производства.
B24: Мастерские:
A25: 1 | B25: швейного производства
B26: Спортивный комплекс:
A27: 1 | B27: спортивный зал;
A28: 2 | B28: открытый стадион широкого профиля с элементами полосы препятствий;
A29: 3 | B29: стрелковый тир (в любой модификации, включая электронный) или место для стрельбы
B30: Залы:
A31: 1 | B31: библиотека, читальный зал с выходом в сеть Интернет;
A32: 2 | B32: актовый зал
